Workbook

Sheet Sheet1
B1: Derivative of y = sin (x2)
B3: This DIGMath unit explores
C4: the derivative function of
D5: y = sin (x2)
B6: on any interval from x = a to x = b.
A8: The function in terms of x: f'(x) = | F8: sin(x^2)
A11: Now enter the interval for x:
C12: xMin = | D12: -6.28
C13: xMax = | D13: 6.28
A16: Click each item below for suggestions and investigations
C17: Item 1 | I17: Trace along all the curves: | M17: 282 | P17: x = | Q17: =M17/50-3.14 -> 2.5 | R17: y = | S17: =Sheet2!M4 -> -0.28
C18: Item 2
C19: Item 3
C20: Item 4
C21: Item 5
A25: To access/download all the DIGMath Apps for Calculus | R25: y' = | S25: =Sheet2!M10 -> 4.70
A26: Click this link: | C26: DIGMath for Calculus
A28: Created by: Sheldon P. Gordon
A29: Farmingdale State College
A30: Development of this module was supported by the
A31: NSF's Division of Undergraduate Education
A32: under grants DUE-0310123 and DUE-0442160.
R62: Error = | S62: =Sheet2!M16 -> -0.000043

Sheet Sheet2
C1: x | D1: y = f(x) | E1: x+.00001 | F1: f(x+0.00001) | G1: AppDeriv | I1: Actual | J1: Diff | L1: verticals
D2: =Sheet1!#REF! ->  | I2: Deriv
C3: =Sheet1!D12 -> -6.28 | D3: =SIN(x^2) -> 0.9858388016 | E3: =x+0.00001 -> -6.27999 | F3: =SIN((x+0.00001)^2) -> 0.9858598564 | G3: =(F3-D3)/dxx -> 2.105479064 | I3: =2*x*COS(x^2) -> 2.106258343 | J3: =I3-G3 -> 0.0007792794422 | L3: =x0 -> 2.5 | M3: 0
C4: =C3+Sheet2!B$12 -> -6.2172 | D4: 0.8160040231 | E4: -6.21719 | F4: 0.8159321403 | G4: -7.188282967 | I4: -7.187657937 | J4: =I4-G4 -> 0.0006250293456 | L4: =L3 -> 2.5 | M4: =LOOKUP(x0,C3:C203,D3:D203) -> -0.2807780436
C5: =C4+Sheet2!B$12 -> -6.1544 | D5: 0.1765964918 | E5: -6.15439 | F5: 0.1764753371 | G5: -12.11547059 | I5: -12.11534669 | J5: 0.0001239033395
C6: =C5+Sheet2!B$12 -> -6.0916 | D6: -0.5576244746 | E6: -6.09159 | F6: -0.5577256023 | G6: -10.11277095 | I6: -10.11319312 | J6: -0.0004221676109 | L6: =L4 -> 2.5 | M6: =M4 -> -0.2807780436
C7: =C6+Sheet2!B$12 -> -6.0288 | D7: -0.976307311 | E7: -6.02879 | F7: -0.9763333952 | G7: -2.608415538 | I7: -2.609127412 | J7: -0.0007118747493
C8: =C7+Sheet2!B$12 -> -5.966 | D8: -0.8601872904 | E8: -5.96599 | F8: -0.8601264337 | G8: 6.085667816 | I8: 6.085060596 | J8: -0.000607220069 | L8: Derivative
C9: =C8+Sheet2!B$12 -> -5.9032 | D9: -0.2861927837 | E9: -5.90319 | F9: -0.2860796562 | G9: 11.31275243 | I9: 11.31256257 | J9: -0.0001898549691 | L9: =x0 -> 2.5 | M9: 0
C10: =C9+Sheet2!B$12 -> -5.8404 | D10: 0.4324849847 | E10: -5.84039 | F10: 0.4325903005 | G10: 10.5315857 | I10: 10.53188978 | J10: 0.0003040841458 | L10: =L9 -> 2.5 | M10: =LOOKUP(x0,C3:C203,G3:G203) -> 4.701394014
C11: =C10+Sheet2!B$12 -> -5.7776 | D11: 0.9234043657 | E11: -5.77759 | F11: 0.9234487116 | G11: 4.434595663 | I11: 4.435215987 | J11: 0.0006203242504
A12: delta x = | B12: =(xMax-xMin)/200 -> 0.0628 | C12: =C11+Sheet2!B$12 -> -5.7148 | D12: 0.9467581565 | E12: -5.71479 | F12: 0.9467213533 | G12: -3.680325024 | I12: -3.67970985 | J12: 0.0006151737198 | L12: =L9 -> 2.5 | M12: =M10 -> 4.701394014
C13: =C12+Sheet2!B$12 -> -5.652 | D13: 0.5048234805 | E13: -5.65199 | F13: 0.5047258987 | G13: -9.758182126 | I13: -9.757868247 | J13: 0.0003138789209
C14: =C13+Sheet2!B$12 -> -5.5892 | D14: -0.1758507274 | E14: -5.58919 | F14: -0.1759607683 | G14: -11.00408551 | I14: -11.00420524 | J14: -0.0001197358495 | L14: Error
A15: dxx = | B15: =0.00001 -> 1e-05 | C15: =C14+Sheet2!B$12 -> -5.5264 | D15: -0.7674342498 | E15: -5.52639 | F15: -0.7675051076 | G15: -7.085780574 | I15: -7.086255765 | J15: -0.0004751908484 | L15: =x0 -> 2.5 | M15: 0
C16: =C15+Sheet2!B$12 -> -5.4636 | D16: -0.9999832105 | E16: -5.46359 | F16: -0.9999838377 | G16: -0.06272298216 | I16: -0.06332004763 | J16: -0.0005970654639 | L16: =L15 -> 2.5 | M16: =LOOKUP(x0,C3:C203,J3:J209) -> -4.32813988e-05
C17: =C16+Sheet2!B$12 -> -5.4008 | D17: -0.7797752576 | E17: -5.40079 | F17: -0.7797076287 | G17: 6.762893352 | I17: 6.762444727 | J17: -0.0004486248992
C18: =C17+Sheet2!B$12 -> -5.338 | D18: -0.2181419063 | E18: -5.33799 | F18: -0.2180377162 | G18: 10.41900507 | I18: 10.41889054 | J18: -0.0001145361856 | L18: =L15 -> 2.5 | M18: =M16 -> -4.32813988e-05
C19: =C18+Sheet2!B$12 -> -5.2752 | D19: 0.4319004616 | E19: -5.27519 | F19: 0.4319956154 | G19: 9.515380836 | I19: 9.515630249 | J19: 0.0002494127668
C20: =C19+Sheet2!B$12 -> -5.2124 | D20: 0.893563034 | E20: -5.21239 | F20: 0.89360983 | G20: 4.679596223 | I20: 4.680086266 | J20: 0.0004900433294
C21: =C20+Sheet2!B$12 -> -5.1496 | D21: 0.9829072861 | E21: -5.14959 | F21: 0.9828883199 | G21: -1.896614958 | I21: -1.896095501 | J21: 0.0005194567422 | L21: Envelops/Verticals
C22: =C21+Sheet2!B$12 -> -5.0868 | D22: 0.6763478299 | E22: -5.08679 | F22: 0.6762728896 | G22: -7.494037211 | I22: -7.493694573 | J22: 0.0003426374969 | L22: =6.4 -> 6.4 | M22: =-2*L22 -> -12.8
C23: =C22+Sheet2!B$12 -> -5.024 | D23: 0.1076259029 | E23: -5.02399 | F23: 0.1075260061 | G23: -9.989680192 | I23: -9.98963582 | J23: 4.43718247e-05 | L23: =-L22 -> -6.4 | M23: =-2*L23 -> 12.8
C24: =C23+Sheet2!B$12 -> -4.9612 | D24: -0.4962167956 | E24: -4.96119 | F24: -0.4963029392 | G24: -8.614361292 | I24: -8.614614261 | J24: -0.0002529688311
C25: =C24+Sheet2!B$12 -> -4.8984 | D25: -0.9079720051 | E25: -4.89839 | F25: -0.9080130523 | G25: -4.104721333 | I25: -4.105161253 | J25: -0.000439919582 | L25: =6.4 -> 6.4 | M25: =2*L25 -> 12.8
C26: =C25+Sheet2!B$12 -> -4.8356 | D26: -0.9840369084 | E26: -4.83559 | F26: -0.9840196925 | G26: 1.721588677 | I26: 1.721130265 | J26: -0.0004584118869 | L26: =-L25 -> -6.4 | M26: =2*L26 -> -12.8
C27: =C26+Sheet2!B$12 -> -4.7728 | D27: -0.7092764497 | E27: -4.77279 | F27: -0.7092091567 | G27: 6.729300039 | I27: 6.728983958 | J27: -0.0003160806523
C28: =C27+Sheet2!B$12 -> -4.71 | D28: -0.1917563799 | E28: -4.70999 | F28: -0.1916639273 | G28: 9.245264128 | I28: 9.245188878 | J28: -7.525035059e-05
C29: =C28+Sheet2!B$12 -> -4.6472 | D29: 0.3845134888 | E29: -4.64719 | F29: 0.3845992855 | G29: 8.579665375 | I29: 8.579840701 | J29: 0.0001753261475
C30: =C29+Sheet2!B$12 -> -4.5844 | D30: 0.8273792006 | E30: -4.58439 | F30: 0.827430693 | G30: 5.149245461 | I30: 5.149598861 | J30: 0.000353399117
C31: =C30+Sheet2!B$12 -> -4.5216 | D31: 0.9996995393 | E31: -4.52159 | F31: 0.9997017519 | G31: 0.221256601 | I31: 0.22166562 | J31: 0.0004090189941
C32: =C31+Sheet2!B$12 -> -4.4588 | D32: 0.8579888565 | E32: -4.45879 | F32: 0.8579430463 | G32: -4.581024437 | I32: -4.580688429 | J32: 0.0003360079485
C33: =C32+Sheet2!B$12 -> -4.396 | D33: 0.4575697176 | E33: -4.39599 | F33: 0.4574915398 | G33: -7.817783536 | I33: -7.81761559 | J33: 0.0001679465152
C34: =C33+Sheet2!B$12 -> -4.3332 | D34: -0.07286903911 | E34: -4.33319 | F34: -0.07295547234 | G34: -8.643323181 | I34: -8.64336053 | J34: -3.734926895e-05
C35: =C34+Sheet2!B$12 -> -4.2704 | D35: -0.5755199132 | E35: -4.27039 | F35: -0.5755897566 | G35: -6.984343655 | I35: -6.984561748 | J35: -0.0002180932599
C36: =C35+Sheet2!B$12 -> -4.2076 | D36: -0.9109817559 | E36: -4.20759 | F36: -0.9110164608 | G36: -3.470494377 | I36: -3.470821063 | J36: -0.0003266864473
C37: =C36+Sheet2!B$12 -> -4.1448 | D37: -0.995064625 | E37: -4.14479 | F37: -0.9950563959 | G37: 0.822909514 | I37: 0.8225686165 | J37: -0.0003408975273
C38: =C37+Sheet2!B$12 -> -4.082 | D38: -0.8161755138 | E38: -4.08199 | F38: -0.8161283392 | G38: 4.717458548 | I38: 4.717192338 | J38: -0.0002662099622
C39: =C38+Sheet2!B$12 -> -4.0192 | D39: -0.4313651221 | E39: -4.01919 | F39: -0.4312926002 | G39: 7.252193461 | I39: 7.252063125 | J39: -0.0001303351094
C40: =C39+Sheet2!B$12 -> -3.9564 | D40: 0.05483479066 | E40: -3.95639 | F40: 0.05491379934 | G40: 7.900867566 | I40: 7.900894726 | J40: 2.715972694e-05
C41: =C40+Sheet2!B$12 -> -3.8936 | D41: 0.5208465283 | E41: -3.89359 | F41: 0.520913002 | G41: 6.647379422 | I41: 6.647545887 | J41: 0.0001664647104
C42: =C41+Sheet2!B$12 -> -3.8308 | D42: 0.8588060972 | E42: -3.83079 | F42: 0.8588453451 | G42: 3.924786456 | I42: 3.925043642 | J42: 0.0002571862078
C43: =C42+Sheet2!B$12 -> -3.768 | D43: 0.9981609246 | E43: -3.76799 | F43: 0.9981654901 | G43: 0.4565473001 | I43: 0.4568313402 | J43: 0.0002840401265
C44: =C43+Sheet2!B$12 -> -3.7052 | D44: 0.917654175 | E44: -3.70519 | F44: 0.9176247251 | G44: -2.944992275 | I44: -2.944744292 | J44: 0.0002479833055
C45: =C44+Sheet2!B$12 -> -3.6424 | D45: 0.6447583809 | E45: -3.64239 | F45: 0.6447026953 | G45: -5.568565773 | I45: -5.568402341 | J45: 0.0001634319601
C46: =C45+Sheet2!B$12 -> -3.5796 | D46: 0.2446566311 | E46: -3.57959 | F46: 0.2445872142 | G46: -6.94168336 | I46: -6.941630364 | J46: 5.299607009e-05
C47: =C46+Sheet2!B$12 -> -3.5168 | D47: -0.1971876106 | E47: -3.51679 | F47: -0.197256565 | G47: -6.895442106 | I47: -6.895500691 | J47: -5.858504114e-05
C48: =C47+Sheet2!B$12 -> -3.454 | D48: -0.5941871018 | E48: -3.45399 | F48: -0.5942426632 | G48: -5.556140086 | I48: -5.556289908 | J48: -0.0001498216042
C49: =C48+Sheet2!B$12 -> -3.3912 | D49: -0.8753373941 | E49: -3.39119 | F49: -0.8753701858 | G49: -3.279169774 | I49: -3.279375943 | J49: -0.0002061687897
C50: =C49+Sheet2!B$12 -> -3.3284 | D50: -0.9965845936 | E50: -3.32839 | F50: -0.9965900885 | G50: -0.54948447 | I50: -0.5497061037 | J50: -0.000221633707
C51: =C50+Sheet2!B$12 -> -3.2656 | D51: -0.945577693 | E51: -3.26559 | F51: -0.9455564388 | G51: 2.12542748 | I51: 2.125229061 | J51: -0.000198419433
C52: =C51+Sheet2!B$12 -> -3.2028 | D52: -0.740053484 | E52: -3.20279 | F52: -0.7400104018 | G52: 4.308218704 | I52: 4.308073605 | J52: -0.0001450993593
C53: =C52+Sheet2!B$12 -> -3.14 | D53: -0.4212490074 | E53: -3.13999 | F53: -0.4211920505 | G53: 5.695688735 | I53: 5.695614741 | J53: -7.399350039e-05
C54: =C53+Sheet2!B$12 -> -3.0772 | D54: -0.04436731046 | E54: -3.07719 | F54: -0.04430582707 | G54: 6.148338085 | I54: 6.148339676 | J54: 1.591526034e-06
C55: =C54+Sheet2!B$12 -> -3.0144 | D55: 0.3317618604 | E55: -3.01439 | F55: 0.3318187332 | G55: 5.687278143 | I55: 5.687347871 | J55: 6.972864822e-05
C56: =C55+Sheet2!B$12 -> -2.9516 | D56: 0.6539814078 | E56: -2.95159 | F56: 0.6540260649 | G56: 4.465711976 | I56: 4.465833492 | J56: 0.0001215163257
C57: =C56+Sheet2!B$12 -> -2.8888 | D57: 0.8817751107 | E57: -2.88879 | F57: 0.8818023604 | G57: 2.724969102 | I57: 2.725120991 | J57: 0.0001518888884
C58: =C57+Sheet2!B$12 -> -2.826 | D58: 0.991261856 | E58: -2.82599 | F58: 0.9912693098 | G58: 0.745388919 | I58: 0.7455485678 | J58: 0.0001596487405
C59: =C58+Sheet2!B$12 -> -2.7632 | D59: 0.9761787189 | E59: -2.76319 | F59: 0.9761667269 | G59: -1.199198798 | I59: -1.199051901 | J59: 0.0001468970184
C60: =C59+Sheet2!B$12 -> -2.7004 | D60: 0.8462861642 | E60: -2.70039 | F60: 0.8462573914 | G60: -2.877278552 | I60: -2.877160456 | J60: 0.0001180959533
C61: =C60+Sheet2!B$12 -> -2.6376 | D61: 0.623919736 | E61: -2.63759 | F61: 0.6238785101 | G61: -4.122586749 | I61: -4.122507755 | J61: 7.899425678e-05
C62: =C61+Sheet2!B$12 -> -2.5748 | D62: 0.3395230057 | E62: -2.57479 | F62: 0.3394745683 | G62: -4.843737787 | I62: -4.843702177 | J62: 3.560972425e-05
C63: =C62+Sheet2!B$12 -> -2.512 | D63: 0.02695542747 | E63: -2.51199 | F63: 0.02690520579 | G63: -5.022167865 | I63: -5.022174462 | J63: -6.596620897e-06
C64: =C63+Sheet2!B$12 -> -2.4492 | D64: -0.2807780436 | E64: -2.44919 | F64: -0.2808250567 | G64: -4.701307448 | I64: -4.701350733 | J64: -4.328476079e-05
C65: =C64+Sheet2!B$12 -> -2.3864 | D65: -0.5549312715 | E65: -2.38639 | F65: -0.5549709755 | G65: -3.970402647 | I65: -3.970474173 | J65: -7.152581224e-05
C66: =C65+Sheet2!B$12 -> -2.3236 | D66: -0.7733246454 | E66: -2.32359 | F66: -0.7733541082 | G66: -2.946282572 | I66: -2.946372418 | J66: -8.984619824e-05
C67: =C66+Sheet2!B$12 -> -2.2608 | D67: =SIN(x^2) -> -0.9215168918 | E67: -2.26079 | F67: -0.9215344499 | G67: =(F67-D67)/dxx -> -1.755812273 | I67: -1.755910358 | J67: -9.808499817e-05
C68: =C67+Sheet2!B$12 -> -2.198 | D68: -0.9929497954 | E68: -2.19799 | F68: -0.9929550053 | G68: -0.5209856543 | I68: -0.5210827823 | J68: =I68-G68 -> -9.712795117e-05
C69: =C68+Sheet2!B$12 -> -2.1352 | D69: -0.9882710312 | E69: -2.13519 | F69: -0.988264509 | G69: 0.6522217152 | I69: 0.6521331308 | J69: -8.858439212e-05
C70: =C69+Sheet2!B$12 -> -2.0724 | D70: -0.9140863392 | E70: -2.07239 | F70: -0.9140695305 | G70: 1.680872194 | I70: 1.680797733 | J70: -7.446106505e-05
C71: =C70+Sheet2!B$12 -> -2.0096 | D71: -0.7813958499 | E71: -2.00959 | F71: -0.7813707681 | G71: 2.508181063 | I71: 2.508124192 | J71: -5.687187964e-05
C72: =C71+Sheet2!B$12 -> -1.9468 | D72: -0.6039418554 | E72: -1.94679 | F72: -0.603910822 | G72: 3.1033475 | I72: 3.103309692 | J72: -3.780790597e-05
C73: =C72+Sheet2!B$12 -> -1.884 | D73: -0.3966488501 | E73: -1.88399 | F73: -0.3966142608 | G73: 3.458931515 | I73: 3.458912538 | J73: -1.897709348e-05
C74: =C73+Sheet2!B$12 -> -1.8212 | D74: -0.1742822211 | E74: -1.82119 | F74: -0.1742463546 | G74: 3.58665749 | I74: 3.586655776 | J74: -1.713278562e-06
C75: =C74+Sheet2!B$12 -> -1.7584 | D75: 0.04960173159 | E75: -1.75839 | F75: 0.04963685617 | G75: 3.512458033 | I75: 3.512471088 | J75: 1.30557258e-05
C76: =C75+Sheet2!B$12 -> -1.6956 | D76: 0.2633887298 | E76: -1.69559 | F76: 0.2634214442 | G76: 3.271431199 | I76: 3.271455991 | J76: 2.479258487e-05
C77: =C76+Sheet2!B$12 -> -1.6328 | D77: 0.4578335465 | E77: -1.63279 | F77: 0.4578625786 | G77: 2.903208966 | I77: 2.903242269 | J77: 3.330274604e-05
C78: =C77+Sheet2!B$12 -> -1.57 | D78: 0.6262178873 | E78: -1.56999 | F78: 0.6262423679 | G78: 2.448056362 | I78: 2.448095029 | J78: 3.866797129e-05
C79: =C78+Sheet2!B$12 -> -1.5072 | D79: 0.7642907707 | E79: -1.50719 | F79: 0.7643102093 | G79: 1.943860333 | I79: 1.943901506 | J79: 4.117281435e-05
C80: =C79+Sheet2!B$12 -> -1.4444 | D80: 0.8700487946 | E80: -1.44439 | F80: 0.8700630349 | G80: 1.424037828 | I80: 1.424079061 | J80: 4.123307452e-05
C81: =C80+Sheet2!B$12 -> -1.3816 | D81: 0.943412381 | E81: -1.38159 | F81: 0.943421544 | G81: 0.9162982806 | I81: 0.9163376127 | J81: 3.933212986e-05
C82: =C81+Sheet2!B$12 -> -1.3188 | D82: 0.985847976 | E82: -1.31879 | F82: 0.9858523973 | G82: 0.4421360052 | I82: 0.4421719738 | J82: 3.596859732e-05
C83: =C82+Sheet2!B$12 -> -1.256 | D83: 0.9999772885 | E83: -1.25599 | F83: 0.9999774575 | G83: 0.01689831377 | I83: 0.01692993092 | J83: 3.161715137e-05
C84: =C83+Sheet2!B$12 -> -1.1932 | D84: 0.9892046741 | E84: -1.19319 | F84: 0.9892011768 | G84: -0.3497309071 | I84: -0.3497042057 | J84: 2.670145471e-05
C85: =C84+Sheet2!B$12 -> -1.1304 | D85: 0.9573839704 | E85: -1.13039 | F85: 0.9573774406 | G85: -0.6529816888 | I85: -0.6529601103 | J85: 2.157854151e-05
C86: =C85+Sheet2!B$12 -> -1.0676 | D86: 0.9085373251 | E86: -1.06759 | F86: 0.908528404 | G86: -0.8921109853 | I86: -0.8920944531 | J86: 1.653217804e-05
C87: =C86+Sheet2!B$12 -> -1.0048 | D87: 0.8466312942 | E87: -1.00479 | F87: 0.8466205994 | G87: -1.069480511 | I87: -1.069468738 | J87: 1.177352779e-05
C88: =C87+Sheet2!B$12 -> -0.942 | D88: 0.7754099196 | E88: -0.94199 | F88: 0.7753980229 | G88: -1.189674693 | I88: -1.189667246 | J88: 7.446604155e-06
C89: =C88+Sheet2!B$12 -> -0.8792 | D89: 0.6982805664 | E89: -0.87919 | F89: 0.6982679793 | G89: -1.258708868 | I89: -1.258705231 | J89: 3.636881473e-06
C90: =C89+Sheet2!B$12 -> -0.8164 | D90: 0.6182458557 | E90: -0.81639 | F90: 0.6182330222 | G90: -1.283356317 | I90: -1.283355936 | J90: 3.813122444e-07
C91: =C90+Sheet2!B$12 -> -0.7536 | D91: 0.5378737938 | E91: -0.75359 | F91: 0.5378610877 | G91: -1.270605523 | I91: -1.270607844 | J91: -2.321078849e-06
C92: =C91+Sheet2!B$12 -> -0.6908 | D92: 0.4592979045 | E92: -0.69079 | F92: 0.459285632 | G92: -1.227246319 | I92: -1.227250818 | J92: -4.499348499e-06
C93: =C92+Sheet2!B$12 -> -0.628 | D93: 0.38423955 | E93: -0.62799 | F93: 0.3842279542 | G93: -1.159574988 | I93: -1.159581189 | J93: -6.201660027e-06
C94: =C93+Sheet2!B$12 -> -0.5652 | D94: 0.314045421 | E94: -0.56519 | F94: 0.3140346889 | G94: -1.07320327 | I94: -1.073210757 | J94: -7.487703557e-06
C95: =C94+Sheet2!B$12 -> -0.5024 | D95: 0.2497342118 | E95: -0.50239 | F95: 0.2497244823 | G95: -0.9729539106 | I95: -0.9729623331 | J95: -8.422499481e-06
C96: =C95+Sheet2!B$12 -> -0.4396 | D96: 0.1920476 | E96: -0.43959 | F96: 0.1920389717 | G96: -0.8628251584 | I96: -0.86283423 | J96: -9.071627702e-06
C97: =C96+Sheet2!B$12 -> -0.3768 | D97: 0.1415017252 | E97: -0.37679 | F97: 0.1414942651 | G97: -0.746007786 | I97: -0.7460172836 | J97: -9.497593973e-06
C98: =C97+Sheet2!B$12 -> -0.314 | D98: 0.09843633286 | E98: -0.31399 | F98: 0.09843008346 | G98: -0.6249402669 | I98: -0.6249500242 | J98: -9.757334757e-06
C99: =C98+Sheet2!B$12 -> -0.2512 | D99: 0.0630595722 | E99: -0.25119 | F99: 0.0630545583 | G99: -0.5013902052 | I99: -0.5014001058 | J99: -9.900518463e-06
C100: =C99+Sheet2!B$12 -> -0.1884 | D100: 0.03548710742 | E100: -0.18839 | F100: 0.03548334189 | G100: -0.3765526981 | I100: -0.3765626666 | J100: -9.968511103e-06
C101: =C100+Sheet2!B$12 -> -0.1256 | D101: 0.01577470569 | E101: -0.12559 | F101: 0.01577219411 | G101: -0.2511587498 | I101: -0.2511687436 | J101: -9.993779116e-06
C102: =C101+Sheet2!B$12 -> -0.0628 | D102: 0.003943829776 | E102: -0.06279 | F102: 0.003942573886 | G102: -0.1255890236 | I102: -0.1255990232 | J102: -9.999611294e-06
C103: =C102+Sheet2!B$12 -> 1.196265309e-14 | D103: 1.43105069e-28 | E103: 1.000000001e-05 | F103: 1.000000002e-10 | G103: 1.000000002e-05 | I103: 2.392530618e-14 | J103: -1e-05
C104: =C103+Sheet2!B$12 -> 0.0628 | D104: 0.003943829776 | E104: 0.06281 | F104: 0.003945085867 | G104: 0.1256090228 | I104: 0.1255990232 | J104: -9.999610988e-06
C105: =C104+Sheet2!B$12 -> 0.1256 | D105: 0.01577470569 | E105: 0.12561 | F105: 0.01577721748 | G105: 0.2511787374 | I105: 0.2511687436 | J105: -9.993777931e-06
C106: =C105+Sheet2!B$12 -> 0.1884 | D106: 0.03548710742 | E106: 0.18841 | F106: 0.03549087314 | G106: 0.3765726351 | I106: 0.3765626666 | J106: -9.968506858e-06
C107: =C106+Sheet2!B$12 -> 0.2512 | D107: 0.0630595722 | E107: 0.25121 | F107: 0.0630645863 | G107: 0.5014100063 | I107: 0.5014001058 | J107: -9.900510361e-06
C108: =C107+Sheet2!B$12 -> 0.314 | D108: 0.09843633286 | E108: 0.31401 | F108: 0.09844258246 | G108: 0.6249597815 | I108: 0.6249500242 | J108: -9.757316202e-06
C109: =C108+Sheet2!B$12 -> 0.3768 | D109: 0.1415017252 | E109: 0.37681 | F109: 0.1415091855 | G109: 0.7460267812 | I109: 0.7460172836 | J109: -9.497555879e-06
C110: =C109+Sheet2!B$12 -> 0.4396 | D110: 0.1920476 | E110: 0.43961 | F110: 0.1920562284 | G110: 0.8628433016 | I110: 0.86283423 | J110: -9.071573086e-06
C111: =C110+Sheet2!B$12 -> 0.5024 | D111: 0.2497342118 | E111: 0.50241 | F111: 0.2497439415 | G111: 0.9729707555 | I111: 0.9729623331 | J111: -8.422412056e-06
C112: =C111+Sheet2!B$12 -> 0.5652 | D112: 0.314045421 | E112: 0.56521 | F112: 0.3140561532 | G112: 1.073218245 | I112: 1.073210757 | J112: -7.487572982e-06
C113: =C112+Sheet2!B$12 -> 0.628 | D113: 0.38423955 | E113: 0.62801 | F113: 0.3842511458 | G113: 1.159587391 | I113: 1.159581189 | J113: -6.201490673e-06
C114: =C113+Sheet2!B$12 -> 0.6908 | D114: 0.4592979045 | E114: 0.69081 | F114: 0.459310177 | G114: 1.227255317 | I114: 1.227250818 | J114: -4.499131219e-06
C115: =C114+Sheet2!B$12 -> 0.7536 | D115: 0.5378737938 | E115: 0.75361 | F115: 0.5378864999 | G115: 1.270610165 | I115: 1.270607844 | J115: -2.320808015e-06
C116: =C115+Sheet2!B$12 -> 0.8164 | D116: 0.6182458557 | E116: 0.81641 | F116: 0.6182586893 | G116: 1.283355554 | I116: 1.283355936 | J116: 3.816441185e-07
C117: =C116+Sheet2!B$12 -> 0.8792 | D117: 0.6982805664 | E117: 0.87921 | F117: 0.6982931534 | G117: 1.258701593 | I117: 1.258705231 | J117: 3.63726646e-06
C118: =C117+Sheet2!B$12 -> 0.942 | D118: 0.7754099196 | E118: 0.94201 | F118: 0.7754218162 | G118: 1.189659799 | I118: 1.189667246 | J118: 7.447059889e-06
C119: =C118+Sheet2!B$12 -> 1.0048 | D119: 0.8466312942 | E119: 1.00481 | F119: 0.8466419888 | G119: 1.069456964 | I119: 1.069468738 | J119: 1.177400274e-05
C120: =C119+Sheet2!B$12 -> 1.0676 | D120: 0.9085373251 | E120: 1.06761 | F120: 0.9085462459 | G120: 0.8920779204 | I120: 0.8920944531 | J120: 1.653269495e-05
C121: =C120+Sheet2!B$12 -> 1.1304 | D121: 0.9573839704 | E121: 1.13041 | F121: 0.9573904998 | G121: 0.6529385312 | I121: 0.6529601103 | J121: 2.157908031e-05
C122: =C121+Sheet2!B$12 -> 1.1932 | D122: 0.9892046741 | E122: 1.19321 | F122: 0.9892081708 | G122: 0.3496775037 | I122: 0.3497042057 | J122: 2.670199349e-05
C123: =C122+Sheet2!B$12 -> 1.256 | D123: 0.9999772885 | E123: 1.25601 | F123: 0.9999771189 | G123: -0.01696154857 | I123: -0.01692993092 | J123: 3.161764365e-05
C124: =C123+Sheet2!B$12 -> 1.3188 | D124: 0.985847976 | E124: 1.31881 | F124: 0.9858435539 | G124: -0.4422079429 | I124: -0.4421719738 | J124: 3.596903613e-05
C125: =C124+Sheet2!B$12 -> 1.3816 | D125: 0.943412381 | E125: 1.38161 | F125: 0.9434032172 | G125: -0.9163769451 | I125: -0.9163376127 | J125: 3.93324337e-05
C126: =C125+Sheet2!B$12 -> 1.4444 | D126: 0.8700487946 | E126: 1.44441 | F126: 0.8700345534 | G126: -1.424120295 | I126: -1.424079061 | J126: 4.123322574e-05
C127: =C126+Sheet2!B$12 -> 1.5072 | D127: 0.7642907707 | E127: 1.50721 | F127: 0.7642713313 | G127: -1.943942678 | I127: -1.943901506 | J127: 4.117271585e-05
C128: =C127+Sheet2!B$12 -> 1.57 | D128: 0.6262178873 | E128: 1.57001 | F128: 0.626193406 | G128: -2.448133697 | I128: -2.448095029 | J128: 3.86675776e-05
C129: =C128+Sheet2!B$12 -> 1.6328 | D129: 0.4578335465 | E129: 1.63281 | F129: 0.4578045138 | G129: -2.903275571 | I129: -2.903242269 | J129: 3.33020366e-05
C130: =C129+Sheet2!B$12 -> 1.6956 | D130: 0.2633887298 | E130: 1.69561 | F130: 0.263356015 | G130: -3.271480783 | I130: -3.271455991 | J130: 2.479158511e-05
C131: =C130+Sheet2!B$12 -> 1.7584 | D131: =SIN(x^2) -> 0.04960173159 | E131: 1.75841 | F131: 0.04956660674 | G131: =(F131-D131)/dxx -> -3.512484143 | I131: -3.512471088 | J131: 1.305434033e-05
C132: =C131+Sheet2!B$12 -> 1.8212 | D132: -0.1742822211 | E132: 1.82121 | F132: -0.1743180877 | G132: -3.586654061 | I132: -3.586655776 | J132: =I132-G132 -> -1.714918045e-06
C133: =C132+Sheet2!B$12 -> 1.884 | D133: -0.3966488501 | E133: 1.88401 | F133: -0.396683439 | G133: -3.458893559 | I133: -3.458912538 | J133: -1.897900025e-05
C134: =C133+Sheet2!B$12 -> 1.9468 | D134: -0.6039418554 | E134: 1.94681 | F134: -0.6039728881 | G134: -3.103271883 | I134: -3.103309692 | J134: -3.780988366e-05
C135: =C134+Sheet2!B$12 -> 2.0096 | D135: -0.7813958499 | E135: 2.00961 | F135: -0.7814209306 | G135: -2.508067318 | I135: -2.508124192 | J135: -5.687383293e-05
C136: =C135+Sheet2!B$12 -> 2.0724 | D136: -0.9140863392 | E136: 2.07241 | F136: -0.9141031464 | G136: -1.68072327 | I136: -1.680797733 | J136: -7.446278562e-05
C137: =C136+Sheet2!B$12 -> 2.1352 | D137: -0.9882710312 | E137: 2.13521 | F137: -0.9882775516 | G137: -0.6520445452 | I137: -0.6521331308 | J137: -8.858564166e-05
C138: =C137+Sheet2!B$12 -> 2.198 | D138: -0.9929497954 | E138: 2.19801 | F138: -0.9929445836 | G138: 0.5211799108 | I138: 0.5210827823 | J138: -9.712848153e-05
C139: =C138+Sheet2!B$12 -> 2.2608 | D139: -0.9215168918 | E139: 2.26081 | F139: -0.9214993317 | G139: 1.756008442 | I139: 1.755910358 | J139: -9.808469296e-05
C140: =C139+Sheet2!B$12 -> 2.3236 | D140: -0.7733246454 | E140: 2.32361 | F140: -0.7732951808 | G140: 2.946462263 | I140: 2.946372418 | J140: -8.984481895e-05
C141: =C140+Sheet2!B$12 -> 2.3864 | D141: -0.5549312715 | E141: 2.38641 | F141: -0.554891566 | G141: 3.970545696 | I141: 3.970474173 | J141: -7.152334882e-05
C142: =C141+Sheet2!B$12 -> 2.4492 | D142: -0.2807780436 | E142: 2.44921 | F142: -0.2807310296 | G142: 4.701394014 | I142: 4.701350733 | J142: -4.32813988e-05
C143: =C142+Sheet2!B$12 -> 2.512 | D143: 0.02695542747 | E143: 2.51201 | F143: 0.02700564928 | G143: 5.022181054 | I143: 5.022174462 | J143: -6.592408454e-06
C144: =C143+Sheet2!B$12 -> 2.5748 | D144: 0.3395230057 | E144: 2.57481 | F144: 0.3395714424 | G144: 4.843666563 | I144: 4.843702177 | J144: 3.561431891e-05
C145: =C144+Sheet2!B$12 -> 2.6376 | D145: 0.623919736 | E145: 2.63761 | F145: 0.6239609603 | G145: 4.122428756 | I145: 4.122507755 | J145: 7.8998706e-05
C146: =C145+Sheet2!B$12 -> 2.7004 | D146: 0.8462861642 | E146: 2.70041 | F146: 0.8463149346 | G146: 2.877042356 | I146: 2.877160456 | J146: 0.0001180996426
C147: =C146+Sheet2!B$12 -> 2.7632 | D147: 0.9761787189 | E147: 2.76321 | F147: 0.9761907079 | G147: 1.198905002 | I147: 1.199051901 | J147: 0.0001468993126
C148: =C147+Sheet2!B$12 -> 2.826 | D148: 0.991261856 | E148: 2.82601 | F148: 0.9912543989 | G148: -0.7457082169 | I148: -0.7455485678 | J148: 0.0001596490691
C149: =C148+Sheet2!B$12 -> 2.8888 | D149: 0.8817751107 | E149: 2.88881 | F149: 0.881747858 | G149: -2.725272878 | I149: -2.725120991 | J149: 0.0001518868932
C150: =C149+Sheet2!B$12 -> 2.9516 | D150: 0.6539814078 | E150: 2.95161 | F150: 0.6539367482 | G150: -4.465955004 | I150: -4.465833492 | J150: 0.0001215118158
C151: =C150+Sheet2!B$12 -> 3.0144 | D151: 0.3317618604 | E151: 3.01441 | F151: 0.3317049862 | G151: -5.687417593 | I151: -5.687347871 | J151: 6.972220786e-05
C152: =C151+Sheet2!B$12 -> 3.0772 | D152: -0.04436731046 | E152: 3.07721 | F152: -0.04442879387 | G152: -6.14834126 | I152: -6.148339676 | J152: 1.583757606e-06
C153: =C152+Sheet2!B$12 -> 3.14 | D153: -0.4212490074 | E153: 3.14001 | F153: -0.4213059628 | G153: -5.69554074 | I153: -5.695614741 | J153: -7.400146553e-05
C154: =C153+Sheet2!B$12 -> 3.2028 | D154: -0.740053484 | E154: 3.20281 | F154: -0.7400965632 | G154: -4.307928499 | I154: -4.308073605 | J154: -0.0001451062884
C155: =C154+Sheet2!B$12 -> 3.2656 | D155: -0.945577693 | E155: 3.26561 | F155: -0.9455989434 | G155: -2.125030637 | I155: -2.125229061 | J155: -0.00019842368
C156: =C155+Sheet2!B$12 -> 3.3284 | D156: -0.9965845936 | E156: 3.32841 | F156: -0.9965790943 | G156: 0.5499277379 | I156: 0.5497061037 | J156: -0.0002216342476
C157: =C156+Sheet2!B$12 -> 3.3912 | D157: -0.8753373941 | E157: 3.39121 | F157: -0.8753045983 | G157: 3.279582108 | I157: 3.279375943 | J157: -0.0002061649765
C158: =C157+Sheet2!B$12 -> 3.454 | D158: -0.5941871018 | E158: 3.45401 | F158: -0.5941315374 | G158: 5.556439721 | I158: 5.556289908 | J158: -0.0001498137782
C159: =C158+Sheet2!B$12 -> 3.5168 | D159: -0.1971876106 | E159: 3.51681 | F159: -0.197118655 | G159: 6.895559265 | I159: 6.895500691 | J159: -5.857400215e-05
C160: =C159+Sheet2!B$12 -> 3.5796 | D160: 0.2446566311 | E160: 3.57961 | F160: 0.2447260468 | G160: 6.941577356 | I160: 6.941630364 | J160: 5.300822666e-05
C161: =C160+Sheet2!B$12 -> 3.6424 | D161: 0.6447583809 | E161: 3.64241 | F161: 0.6448140633 | G161: 5.568238898 | I161: 5.568402341 | J161: 0.0001634426998
C162: =C161+Sheet2!B$12 -> 3.7052 | D162: 0.917654175 | E162: 3.70521 | F162: 0.91768362 | G162: 2.944496302 | I162: 2.944744292 | J162: 0.0002479900335
C163: =C162+Sheet2!B$12 -> 3.768 | D163: 0.9981609246 | E163: 3.76801 | F163: 0.9981563534 | G163: -0.457115381 | I163: -0.4568313402 | J163: 0.0002840407878
C164: =C163+Sheet2!B$12 -> 3.8308 | D164: 0.8588060972 | E164: 3.83081 | F164: 0.8587668442 | G164: -3.925300822 | I164: -3.925043642 | J164: 0.0002571799739
C165: =C164+Sheet2!B$12 -> 3.8936 | D165: 0.5208465283 | E165: 3.89361 | F165: 0.5207800511 | G165: -6.647712339 | I165: -6.647545887 | J165: 0.0001664522939
C166: =C165+Sheet2!B$12 -> 3.9564 | D166: 0.05483479066 | E166: 3.95641 | F166: 0.05475578144 | G166: -7.900921869 | I166: -7.900894726 | J166: 2.714356396e-05
C167: =C166+Sheet2!B$12 -> 4.0192 | D167: -0.4313651221 | E167: 4.01921 | F167: -0.4314376415 | G167: -7.251932773 | I167: -7.252063125 | J167: -0.0001303520064
C168: =C167+Sheet2!B$12 -> 4.082 | D168: -0.8161755138 | E168: 4.08201 | F168: -0.8162226831 | G168: -4.716926116 | I168: -4.717192338 | J168: -0.0002662220461
C169: =C168+Sheet2!B$12 -> 4.1448 | D169: -0.995064625 | E169: 4.14481 | F169: -0.9950728473 | G169: -0.8222277154 | I169: -0.8225686165 | J169: -0.0003409011108
C170: =C169+Sheet2!B$12 -> 4.2076 | D170: -0.9109817559 | E170: 4.20761 | F170: -0.9109470444 | G170: 3.471147743 | I170: 3.470821063 | J170: -0.0003266794569
C171: =C170+Sheet2!B$12 -> 4.2704 | D171: -0.5755199132 | E171: 4.27041 | F171: -0.5754500654 | G171: 6.984779825 | I171: 6.984561748 | J171: -0.0002180770167
C172: =C171+Sheet2!B$12 -> 4.3332 | D172: -0.07286903911 | E172: 4.33321 | F172: -0.07278260513 | G172: 8.643397857 | I172: 8.64336053 | J172: -3.732729442e-05
C173: =C172+Sheet2!B$12 -> 4.396 | D173: 0.4575697176 | E173: 4.39601 | F173: 0.4576478921 | G173: 7.817447621 | I173: 7.81761559 | J173: 0.0001679680302
C174: =C173+Sheet2!B$12 -> 4.4588 | D174: 0.8579888565 | E174: 4.45881 | F174: 0.8580346601 | G174: 4.580352407 | I174: 4.580688429 | J174: 0.0003360222147
C175: =C174+Sheet2!B$12 -> 4.5216 | D175: 0.9996995393 | E175: 4.52161 | F175: 0.9996973186 | G175: -0.2220746402 | I175: -0.22166562 | J175: 0.0004090201847
C176: =C175+Sheet2!B$12 -> 4.5844 | D176: 0.8273792006 | E176: 4.58441 | F176: 0.827327701 | G176: -5.149952246 | I176: -5.149598861 | J176: 0.0003533857453
C177: =C176+Sheet2!B$12 -> 4.6472 | D177: 0.3845134888 | E177: 4.64721 | F177: 0.3844276887 | G177: -8.580016003 | I177: -8.579840701 | J177: 0.0001753015674
C178: =C177+Sheet2!B$12 -> 4.71 | D178: -0.1917563799 | E178: 4.71001 | F178: -0.1918488311 | G178: -9.245113599 | I178: -9.245188878 | J178: -7.52785051e-05
C179: =C178+Sheet2!B$12 -> 4.7728 | D179: -0.7092764497 | E179: 4.77281 | F179: -0.7093437364 | G179: -6.728667856 | I179: -6.728983958 | J179: -0.0003161026519
C180: =C179+Sheet2!B$12 -> 4.8356 | D180: -0.9840369084 | E180: 4.83561 | F180: -0.9840541151 | G180: -1.720671845 | I180: -1.721130265 | J180: -0.0004584192997
C181: =C180+Sheet2!B$12 -> 4.8984 | D181: -0.9079720051 | E181: 4.89841 | F181: -0.9079309491 | G181: 4.105601161 | I181: 4.105161253 | J181: -0.0004399079712
C182: =C181+Sheet2!B$12 -> 4.9612 | D182: -0.4962167956 | E182: 4.96121 | F182: -0.4961306469 | G182: 8.614867202 | I182: 8.614614261 | J182: -0.000252940843
C183: =C182+Sheet2!B$12 -> 5.024 | D183: 0.1076259029 | E183: 5.02401 | F183: 0.1077257988 | G183: 9.989591414 | I183: 9.98963582 | J183: 4.440628773e-05
C184: =C183+Sheet2!B$12 -> 5.0868 | D184: 0.6763478299 | E184: 5.08681 | F184: 0.6764227635 | G184: 7.493351908 | I184: 7.493694573 | J184: 0.000342665316
C185: =C184+Sheet2!B$12 -> 5.1496 | D185: 0.9829072861 | E185: 5.14961 | F185: 0.9829262419 | G185: 1.895576036 | I185: 1.896095501 | J185: 0.0005194656479
C186: =C185+Sheet2!B$12 -> 5.2124 | D186: 0.893563034 | E186: 5.21241 | F186: 0.8935162282 | G186: -4.680576294 | I186: -4.680086266 | J186: 0.0004900280479
C187: =C186+Sheet2!B$12 -> 5.2752 | D187: 0.4319004616 | E187: 5.27521 | F187: 0.4318053028 | G187: -9.515879627 | I187: -9.515630249 | J187: 0.000249377802
C188: =C187+Sheet2!B$12 -> 5.338 | D188: -0.2181419063 | E188: 5.33801 | F188: -0.218246094 | G188: -10.41877596 | I188: -10.41889054 | J188: -0.0001145770201
C189: =C188+Sheet2!B$12 -> 5.4008 | D189: -0.7797752576 | E189: 5.40081 | F189: -0.7798428776 | G189: -6.761996074 | I189: -6.762444727 | J189: -0.0004486535058
C190: =C189+Sheet2!B$12 -> 5.4636 | D190: -0.9999832105 | E190: 5.46361 | F190: -0.9999825713 | G190: 0.06391711501 | I190: 0.06332004763 | J190: -0.0005970673814
C191: =C190+Sheet2!B$12 -> 5.5264 | D191: -0.7674342498 | E191: 5.52641 | F191: -0.7673633825 | G191: 7.086730928 | I191: 7.086255765 | J191: -0.000475163056
C192: =C191+Sheet2!B$12 -> 5.5892 | D192: -0.1758507274 | E192: 5.58921 | F192: -0.1757406842 | G192: 11.00432493 | I192: 11.00420524 | J192: -0.0001196896238
C193: =C192+Sheet2!B$12 -> 5.652 | D193: 0.5048234805 | E193: 5.65201 | F193: 0.504921056 | G193: 9.757554325 | I193: 9.757868247 | J193: 0.0003139221665
C194: =C193+Sheet2!B$12 -> 5.7148 | D194: 0.9467581565 | E194: 5.71481 | F194: 0.9467949475 | G194: 3.679094658 | I194: 3.67970985 | J194: 0.0006151921643
C195: =C194+Sheet2!B$12 -> 5.7776 | D195: =SIN(x^2) -> 0.9234043657 | E195: 5.77761 | F195: 0.9233600073 | G195: =(F195-D195)/dxx -> -4.435836293 | I195: -4.435215987 | J195: 0.000620306134
C196: =C195+Sheet2!B$12 -> 5.8404 | D196: 0.4324849847 | E196: 5.84041 | F196: 0.4323796627 | G196: -10.53219382 | I196: -10.53188978 | J196: =I196-G196 -> 0.0003040355795
C197: =C196+Sheet2!B$12 -> 5.9032 | D197: -0.2861927837 | E197: 5.90321 | F197: -0.2863059074 | G197: -11.31237266 | I197: -11.31256257 | J197: -0.0001899091391
C198: =C197+Sheet2!B$12 -> 5.966 | D198: -0.8601872904 | E198: 5.96601 | F198: -0.8602481349 | G198: -6.084453344 | I198: -6.085060596 | J198: -0.0006072514071
C199: =C198+Sheet2!B$12 -> 6.0288 | D199: -0.976307311 | E199: 6.02881 | F199: -0.9762812126 | G199: 2.609839277 | I199: 2.609127412 | J199: -0.0007118643294
C200: =C199+Sheet2!B$12 -> 6.0916 | D200: -0.5576244746 | E200: 6.09161 | F200: -0.5575233385 | G200: 10.11361524 | I200: 10.11319312 | J200: -0.000422117984
... 205 more rows

Sheet Defining Function
A1: Defining a Function in Excel
A3: Computers have very specific rules you must follow when defining a function. If you don't, the program will either not work at all or will work incorrectly.
A5: 1. The Variable used should be the one named in the instruction, usually x, though sometimes y, t, Q (for an angle theta),
A6: or even x and y (for a function of two variables).
A8: 2. Order of Operations: There five arithmetic operations, addition (+), subtraction (-), multiplication (*), division (/), and exponentiation or power (^). When computers see any of these operation symbols, they perform the indicated steps in a very particular order. First, the power is done. Second, products and quotients of adjacent terms is done. Third, and last, sums and differences of adjacent terms are done. So, in 10*x^3 + 5*x – 7, say with x = 2, the first pass only calculates 2^3 and ignores the multiplications and the sums and differences to calculate 2^3 = 8. The second pass looks at 10*8 + 5*2 – 7 and only does the multiplications, so it produces 80 + 10 - 7. The third pass looks at the +’s and –‘s to produce 80 + 10 – 7 = 83.
A10: 3. Parentheses If you need an operation involving more than two adjacent terms, as in Ö4^3 + 6^2, the computer would take the square root of 4 to produce 2^3 + 6^2; it would then cube the 2 and square the 6 to produce 8 + 36; and finally it would add the 8 and the 36 to get 44. If you actually wanted the square root of the entire expression, you would need to use parentheses, as in Ö(4^3 + 6^2) to tell the computer to do all the operations inside the parentheses before taking the square root. Therefore, it would calculate (4^3 + 6^2) = 64 + 36 = 100 and then take the square root of Ö100 = 10.
A12: 4. Built-In Functions Computer programs have built-in functions for most common algebraic functions. In Excel, the square root function is denoted by SQRT(…), so SQRT(100) = 10. Alternatively, you could enter it as 100^.5 or 100^(1/2); notice that parentheses are needed to have the ½ done first. The common trig functions are SIN (…), COS (…), and TAN (…), where the arguments are automatically interpreted as being in radians, not degrees. The logarithm to the base 10 is represented by LOG (…) and the logarithm with the base e, known as the natural logarithm, is LN (…). The corresponding exponential function with base e is EXP (x). If x is the variable, then each of these would be SQRT (x), SIN (x), COS (x), TAN (x), LOG (x) (for log with base 10 ), LN (x) (for log with base e ), and EXP (x).

Sheet Sheet3
